bitfinex/quotes_SOLUSD_20220227
["timestamp","ask_amount","ask_price","bid_price","bid_amount"]
[1645981016156,4.511,88.69,88.636,0.83505471]
[1645981016354,6.0,88.689,88.636,0.83505471]
[1645981016554,7.79201478,88.689,88.636,0.83505471]
[1645981016754,6.0,88.689,88.636,0.83505471]
[1645981016954,1.75834251,88.694,88.636,0.83505471]
[1645981017155,2.00949152,88.692,88.636,0.83505471]
[1645981017357,10.511,88.691,88.636,0.83505471]
[1645981017657,1.83723511,88.69,88.636,0.83505471]
[1645981017858,6.0,88.689,88.636,0.83505471]
[1645981018459,10.511,88.695,88.636,0.83505471]
[1645981018863,1.94729082,88.694,88.636,0.83505471]
[1645981019162,1.89445527,88.692,88.636,0.83505471]
[1645981019360,6.0,88.691,88.636,0.83505471]
[1645981019961,6.0,88.696,88.636,0.83505471]
[1645981022563,6.0,88.704,88.636,0.83505471]
[1645981022761,10.511,88.709,88.636,0.83505471]
[1645981022961,2.28031123,88.708,88.636,0.83505471]
[1645981023164,6.0,88.707,88.636,0.83505471]
[1645981023362,8.14305901,88.707,88.636,0.83505471]
[1645981023563,32.08775901,88.707,88.636,0.83505471]
[1645981023761,1.92990622,88.706,88.636,0.83505471]
[1645981023964,6.0,88.705,88.636,0.83505471]
[1645981024364,6.0,88.705,88.636,17.45885471]
[1645981024564,8.07959192,88.705,88.636,17.45885471]
[1645981025965,6.0,88.705,88.637,2.74678921]
[1645981026168,24.6336,88.724,88.637,2.74678921]
[1645981026169,8.08416164,88.723,88.64,16.18]
[1645981026367,8.08416164,88.723,88.64,24.9]
[1645981026566,8.08416164,88.723,88.641,2.74678921]
[1645981030081,8.08416164,88.723,88.641,7.25678921]
[1645981030978,8.08416164,88.723,88.642,2.74678921]
[1645981030979,6.0,88.723,88.642,2.74678921]
[1645981031175,6.0,88.726,88.643,4.51]
[1645981031375,6.0,88.726,88.644,6.0]
[1645981031576,6.0,88.738,88.644,8.74678921]
[1645981031775,6.0,88.743,88.644,8.74678921]
[1645981031976,6.0,88.743,88.645,2.74678921]
[1645981032177,6.0,88.743,88.646,6.0]
[1645981032479,22.36029858,88.742,88.66,16.18]
[1645981032676,8.07546197,88.741,88.661,34.10892377]
[1645981034880,8.07546197,88.741,88.661,50.82852377]
[1645981036281,8.07546197,88.741,88.662,2.74678921]
[1645981037498,8.07546197,88.741,88.661,50.82852377]
[1645981039603,6.0,88.741,88.662,2.74678921]
[1645981039804,6.0,88.741,88.663,6.0]
[1645981040104,6.0,88.76,88.663,6.0]
[1645981040404,6.0,88.76,88.664,2.74678921]
[1645981040705,6.0,88.76,88.665,6.0]
[1645981040904,6.0,88.76,88.68,16.18]
[1645981041107,6.0,88.76,88.681,27.2046073]
[1645981041406,6.0,88.76,88.681,29.95139651]
[1645981041806,6.0,88.76,88.682,2.74678921]
[1645981042308,6.0,88.76,88.715,33.77539634]
[1645981043308,6.0,88.76,88.714,3.3531804]
[1645981043510,6.0,88.76,88.751,3.3531804]
[1645981043711,3.03219997,88.759,88.751,3.3531804]
[1645981043909,6.0,88.758,88.751,3.3531804]
[1645981046110,6.0,88.758,88.751,8.04e-05]
[1645981046512,2.74678921,88.757,88.751,8.04e-05]
[1645981046711,6.0,88.756,88.751,8.04e-05]
[1645981046911,4.506,88.755,88.661,16.7196]
[1645981047110,45.86802721,88.755,88.661,16.7196]
[1645981047309,7.93127396,88.754,88.661,16.7196]
[1645981047510,6.76731302,88.753,88.661,16.7196]
[1645981047709,6.0,88.752,88.668,36.34394457]
[1645981047909,6.0,88.752,88.652,17.2759]
[1645981047910,33.1009,88.75,88.652,17.2759]
[1645981048115,7.81315261,88.749,88.64,16.18]
[1645981048313,4.509,88.748,88.64,17.2518]
[1645981048514,6.0,88.747,88.64,17.2518]
[1645981048713,4.509,88.746,88.64,17.2518]
[1645981048919,6.0,88.745,88.641,30.20068038]
[1645981049215,6.68635873,88.744,88.641,30.20068038]
[1645981049414,6.0,88.743,88.641,30.20068038]
[1645981049616,1.9975509,88.741,88.641,30.20068038]
[1645981049815,6.0,88.74,88.641,30.20068038]
[1645981050016,28.32469248,88.74,88.641,30.20068038]
[1645981050216,1.90689189,88.739,88.641,30.20068038]
[1645981050417,7.72291012,88.738,88.641,30.20068038]
[1645981050617,6.79493053,88.737,88.641,30.20068038]
[1645981050819,7.67224735,88.736,88.641,30.20068038]
[1645981051018,6.59897706,88.735,88.64,17.2518]
[1645981051222,8.25161663,88.734,88.64,17.2518]
[1645981051425,4.51,88.733,88.64,17.2518]
[1645981051619,6.0,88.732,88.64,17.2518]
[1645981051918,6.492317,88.731,88.64,17.2518]
[1645981052119,7.81775532,88.73,88.641,26.52941528]
[1645981052319,6.65194247,88.729,88.641,26.52941528]
[1645981052521,8.00998977,88.728,88.641,26.52941528]
[1645981052720,4.51,88.727,88.641,26.52941528]
[1645981052920,6.0,88.726,88.641,26.52941528]
[1645981053119,8.04358482,88.726,88.641,26.52941528]
[1645981053321,1.73437565,88.724,88.641,26.52941528]
[1645981053521,6.0,88.723,88.641,26.52941528]
[1645981053721,28.32469248,88.723,88.641,26.52941528]
[1645981053925,1.90680178,88.722,88.641,26.52941528]
[1645981054121,18.60909441,88.72,88.636,0.83505471]
[1645981054323,10.51,88.719,88.636,0.83505471]
[1645981054523,1.61644805,88.718,88.636,0.83505471]
[1645981054725,10.51,88.717,88.636,0.83505471]
[1645981054924,1.62122917,88.716,88.636,0.83505471]
[1645981055123,1.91497357,88.714,88.636,0.83505471]
[1645981055323,10.51,88.715,88.636,0.83505471]
[1645981055324,10.51,88.713,88.636,0.83505471]
[1645981055546,16.9299,88.7,88.636,0.83505471]
[1645981055724,10.511,88.699,88.636,0.83505471]
[1645981055925,1.6452786,88.698,88.636,0.83505471]
[1645981056224,1.7236201,88.696,88.636,0.83505471]
[1645981056426,10.511,88.695,88.636,0.83505471]
[1645981056623,6.0,88.695,88.636,0.83505471]
[1645981056824,6.0,88.695,88.637,34.52132429]
[1645981059628,6.52007242,88.694,88.637,34.52132429]
[1645981059830,6.0,88.693,88.637,34.52132429]
[1645981060128,8.11624836,88.693,88.637,34.52132429]
[1645981060728,6.0,88.693,88.637,34.52132429]
[1645981060929,6.0,88.697,88.637,34.52132429]
[1645981061331,6.0,88.712,88.638,2.74678921]
[1645981061533,6.0,88.716,88.64,16.18]
[1645981063129,6.0,88.723,88.64,16.18]
[1645981063530,23.1152,88.722,88.64,16.18]
[1645981063732,7.65809116,88.721,88.64,16.18]
[1645981067435,6.0,88.721,88.641,13.25678921]
[1645981067634,6.0,88.739,88.641,13.25678921]
[1645981067836,6.0,88.75,88.642,2.74678921]
[1645981068038,6.0,88.75,88.643,10.509]
[1645981068536,22.39759009,88.749,88.644,2.74678921]
[1645981068737,7.73401856,88.748,88.645,4.509]
[1645981069140,33.20615988,88.748,88.645,7.25578921]
[1645981069342,47.25966077,88.747,88.645,7.25578921]
[1645981069537,8.06098584,88.746,88.645,7.25578921]
[1645981069838,1.94926499,88.745,88.645,7.25578921]
[1645981070038,1.94926499,88.745,88.644,24.5198]
[1645981070039,10.509,88.744,88.644,24.5198]
[1645981070241,1.96066212,88.743,88.644,24.5198]
[1645981070439,1.66951846,88.741,88.644,24.5198]
[1645981070660,35.2219,88.74,88.644,24.5198]
[1645981070858,2.13254447,88.739,88.644,24.5198]
[1645981071058,10.51,88.738,88.644,24.5198]
[1645981071257,1.75733165,88.737,88.644,24.5198]
[1645981071458,10.51,88.736,88.644,24.5198]
[1645981071658,1.708579,88.735,88.644,24.5198]
[1645981071860,1.71900426,88.733,88.644,24.5198]
[1645981072059,28.39759009,88.732,88.644,24.5198]
[1645981072259,1.6272037,88.731,88.644,24.5198]
[1645981072458,22.9243,88.73,88.644,24.5198]
[1645981072658,48.0686793,88.73,88.644,24.5198]
[1645981072859,1.7025341,88.729,88.644,24.5198]
[1645981073159,1.99969947,88.727,88.644,24.5198]
[1645981073359,10.51,88.726,88.644,24.5198]
[1645981073559,1.97976158,88.725,88.644,24.5198]
[1645981073859,1.89246959,88.723,88.644,24.5198]
[1645981074058,6.0,88.722,88.644,24.5198]
[1645981084173,6.0,88.722,88.645,4.51]
[1645981085773,6.0,88.722,88.644,24.5198]
[1645981086276,4.51,88.748,88.645,5.06311571]
[1645981086474,2.15353421,88.761,88.66,202.3]
[1645981086676,23.0348,88.786,88.67,218.48]
[1645981086874,204.89697544,88.767,88.681,27.57299663]
[1645981087077,203.0484995,88.767,88.682,10.508]
[1645981087274,203.0484995,88.767,88.682,39.31904431]
[1645981087477,203.0484995,88.767,88.683,28.85085434]
[1645981087677,203.0484995,88.767,88.69,202.3]
[1645981087976,1.91291281,88.785,88.7,33.0859]
[1645981088177,6.0,88.784,88.702,32.66968074]
[1645981088376,6.0,88.784,88.703,6.0]
[1645981088578,6.0,88.784,88.704,4.507]
[1645981088976,6.0,88.784,88.704,2.74678921]
[1645981089177,6.0,88.784,88.705,2.74678921]
[1645981089381,6.0,88.784,88.706,4.507]
[1645981089579,6.0,88.784,88.71,16.18]
[1645981089780,6.0,88.784,88.711,4.507]
[1645981090179,6.0,88.784,88.711,2.74678921]
[1645981090579,6.0,88.784,88.712,2.74678921]
[1645981090978,6.0,88.784,88.713,0.50439014]
[1645981091981,6.0,88.784,88.775,0.50439014]
[1645981092181,3.03219997,88.783,88.775,0.50439014]
[1645981092587,1.86492985,88.806,88.775,0.50439014]
[1645981092782,6.0,88.805,88.775,0.50439014]
[1645981092982,28.47244149,88.805,88.775,0.50439014]
[1645981093183,1.74247035,88.804,88.775,0.50439014]
[1645981093385,6.0,88.803,88.775,0.50439014]
[1645981093583,7.69846332,88.803,88.775,0.50439014]
[1645981094183,7.69846332,88.803,88.775,1.37051895]
[1645981094686,1.8479298,88.815,88.775,1.37051895]
[1645981094883,1.66272803,88.828,88.775,1.37051895]
[1645981095088,6.0,88.827,88.776,2.74678921]
[1645981095284,6.0,88.827,88.777,6.0]
[1645981095684,6.0,88.835,88.775,17.96141895]
[1645981097486,8.12021917,88.85,88.775,17.96141895]
[1645981097688,6.15408637,88.849,88.775,17.96141895]
[1645981097885,7.84572059,88.848,88.775,17.96141895]
[1645981098285,22.45639312,88.847,88.775,17.96141895]
[1645981098487,7.74503072,88.846,88.775,17.96141895]
[1645981099185,22.45639312,88.845,88.775,17.96141895]
[1645981099387,7.93181551,88.844,88.775,17.96141895]
[1645981099588,6.0,88.844,88.775,17.96141895]
[1645981099987,6.0,88.849,88.775,17.96141895]
[1645981100487,1.94003753,88.847,88.775,17.96141895]
[1645981100687,6.0,88.846,88.775,17.96141895]
[1645981100887,1.93604102,88.845,88.775,17.96141895]
[1645981101086,6.0,88.844,88.775,17.96141895]
[1645981101689,6.0,88.849,88.775,17.96141895]
[1645981101889,6.0,88.849,88.837,0.50439014]
[1645981103688,6.0,88.849,88.837,1.37051895]
[1645981104811,1.73690045,88.868,88.837,1.37051895]
[1645981104812,1.9091847,88.866,88.837,1.37051895]
[1645981105013,1.87142367,88.864,88.837,1.37051895]
[1645981105215,10.501,88.863,88.837,1.37051895]
[1645981105418,1.95530215,88.862,88.837,1.37051895]
[1645981105614,10.501,88.861,88.837,1.37051895]
[1645981105814,1.63307043,88.86,88.837,1.37051895]
[1645981106015,1.71473425,88.858,88.837,1.37051895]
[1645981106216,1.6467694,88.856,88.837,1.37051895]
[1645981106417,1.72652895,88.854,88.837,1.37051895]
[1645981106619,6.0,88.853,88.837,1.37051895]
[1645981107217,1.85818501,88.864,88.837,1.37051895]
[1645981107417,6.0,88.863,88.837,1.37051895]
[1645981108020,6.0,88.868,88.837,1.37051895]
[1645981108619,22.33195123,88.867,88.837,1.37051895]
[1645981108818,8.15402391,88.866,88.837,1.37051895]
[1645981110523,6.53370488,88.865,88.837,1.37051895]
[1645981110720,7.93649314,88.864,88.837,1.37051895]
[1645981110919,6.53468793,88.863,88.837,1.37051895]
[1645981111120,8.12924849,88.862,88.837,1.37051895]
[1645981111322,6.58507049,88.861,88.837,1.37051895]
[1645981111527,7.95491587,88.86,88.837,1.37051895]
[1645981112021,6.0,88.86,88.837,1.37051895]
[1645981112221,10.502,88.867,88.837,1.37051895]
[1645981112420,2.04271328,88.866,88.837,1.37051895]
[1645981112622,10.501,88.865,88.837,1.37051895]
[1645981112826,2.1341784,88.864,88.837,1.37051895]
[1645981113027,4.501,88.863,88.837,1.37051895]
[1645981113225,6.0,88.862,88.837,0.50439014]
[1645981113525,6.58770928,88.861,88.837,0.50439014]
[1645981113726,6.0,88.86,88.837,0.50439014]
[1645981113924,4.502,88.859,88.837,0.50439014]
[1645981114125,6.0,88.858,88.837,0.50439014]
[1645981114326,7.72268805,88.858,88.837,0.50439014]
[1645981114526,6.0,88.858,88.837,0.50439014]
[1645981114729,30.74078168,88.868,88.837,0.50439014]
[1645981114928,6.53999284,88.867,88.837,0.50439014]
[1645981115230,7.97185111,88.866,88.837,0.50439014]
[1645981115431,4.501,88.865,88.837,0.50439014]
[1645981115633,6.0,88.864,88.837,0.50439014]
[1645981115829,4.501,88.863,88.837,0.50439014]
[1645981116027,6.0,88.862,88.837,0.50439014]
[1645981122434,1.99001154,88.859,88.775,16.5909]
[1645981122635,1.82648429,88.857,88.775,16.5909]
[1645981122933,2.10768262,88.855,88.75,16.18]
[1645981123135,10.503,88.854,88.75,16.18]
[1645981123338,1.62692585,88.849,88.746,36.35804628]
[1645981123534,10.503,88.848,88.749,17.2616]
[1645981123735,2.12369886,88.847,88.749,17.2616]
[1645981123933,10.503,88.846,88.749,17.2616]
[1645981124136,2.07975958,88.845,88.749,17.2616]
[1645981124334,16.18,88.84,88.749,17.2616]
[1645981124535,16.9057,88.83,88.749,17.2616]
[1645981124733,33.0965,88.829,88.749,17.2616]
[1645981124934,1.60748008,88.828,88.749,17.2616]
[1645981125134,6.0,88.827,88.749,17.2616]
[1645981125535,16.9073,88.82,88.722,2.74678921]
[1645981125734,10.505,88.819,88.706,24.9555]
[1645981125937,1.59888532,88.818,88.706,24.9555]
[1645981126234,1.98738024,88.816,88.706,24.9555]
[1645981126438,2.09899132,88.814,88.707,34.4842409]
[1645981126635,16.18,88.81,88.707,34.4842409]
[1645981126834,10.506,88.809,88.707,34.4842409]
[1645981127034,23.8758,88.808,88.707,34.4842409]
[1645981127235,10.506,88.807,88.707,34.4842409]
[1645981127435,2.14984599,88.806,88.707,34.4842409]
[1645981127640,1.75822559,88.799,88.707,34.4842409]
[1645981127842,1.63089215,88.797,88.707,34.4842409]
[1645981128038,4.506,88.796,88.706,24.9555]
[1645981128238,7.87565834,88.795,88.654,16.7759]
[1645981128440,6.27093682,88.794,88.666,53.2365]
[1645981128638,16.18,88.79,88.666,53.2365]
[1645981128837,16.917,88.77,88.666,53.2365]
[1645981129037,10.508,88.789,88.666,53.2365]
[1645981129038,2.06876921,88.768,88.67,16.18]
[1645981129437,6.0,88.767,88.671,26.13473029]
[1645981129837,6.0,88.767,88.671,28.8815195]
[1645981130037,6.0,88.767,88.671,54.67413414]
[1645981130238,6.0,88.767,88.671,28.8815195]
[1645981130640,6.0,88.767,88.68,16.9114]
[1645981131041,6.0,88.767,88.68,33.0914]
[1645981131440,6.0,88.767,88.681,23.4483]
[1645981133340,8.01439202,88.767,88.681,23.4483]
[1645981134346,4.508,88.766,88.681,23.4483]
[1645981134543,6.0,88.765,88.681,23.4483]
[1645981134744,8.10086957,88.765,88.681,23.4483]
[1645981136144,8.10086957,88.765,88.682,26.13473029]
[1645981137446,8.10086957,88.765,88.681,23.4483]
[1645981142351,7.23474076,88.765,88.681,23.4483]
[1645981143852,2.74678921,88.764,88.681,23.4483]
[1645981144155,4.508,88.763,88.68,17.1953]
[1645981144361,4.508,88.763,88.667,35.85806145]
[1645981144362,8.01493896,88.762,88.667,35.85806145]
[1645981144651,16.9224,88.74,88.668,6.0]
[1645981144852,33.0228,88.739,88.668,6.0]
[1645981145051,1.64024501,88.738,88.668,6.0]
[1645981145252,4.509,88.737,88.668,6.0]
[1645981145451,29.67469067,88.737,88.668,6.0]
[1645981145655,1.96263647,88.736,88.668,6.0]
[1645981145852,4.509,88.735,88.668,6.0]
[1645981146053,7.25578921,88.735,88.668,6.0]
[1645981146253,2.74678921,88.734,88.668,6.0]
[1645981146453,16.9243,88.73,88.65,6.0]
[1645981146655,4.51,88.729,88.65,6.0]
[1645981146853,9.17441495,88.729,88.65,6.0]
[1645981147054,2.74678921,88.728,88.65,6.0]
[1645981147253,6.27502675,88.727,88.651,34.40540068]
[1645981147754,2.74678921,88.726,88.651,34.40540068]
[1645981147953,4.51,88.725,88.651,34.40540068]
[1645981148354,7.25678921,88.725,88.651,34.40540068]
[1645981151360,1.64847675,88.719,88.651,34.40540068]
[1645981151557,4.51,88.718,88.651,34.40540068]
[1645981151764,7.25678921,88.718,88.651,34.40540068]
[1645981151961,2.74678921,88.717,88.651,34.40540068]
[1645981152159,1.87325016,88.715,88.651,34.40540068]
[1645981152660,23.0223,88.716,88.651,34.40540068]
[1645981153259,4.51,88.733,88.651,34.40540068]
[1645981153460,2.74678921,88.747,88.652,24.7924]
[1645981153662,1.59640911,88.734,88.652,24.7924]
[1645981154362,4.509,88.753,88.652,50.75206362]
[1645981154566,6.0,88.76,88.661,2.30445642]
[1645981154761,6.0,88.76,88.67,16.18]
[1645981154961,6.0,88.76,88.671,2.40956906]
[1645981155163,6.0,88.76,88.68,202.3]
[1645981155361,219.20924322,88.761,88.69,218.48]
[1645981155561,219.20924322,88.761,88.69,235.3875]
[1645981155762,1.93243677,88.818,88.691,30.88316548]
[1645981155961,1.93243677,88.818,88.692,51.02463043]
[1645981156161,24.41966522,88.817,88.693,2.51095266]
[1645981156361,19.91366522,88.817,88.693,18.06976371]
[1645981156564,19.91366522,88.817,88.7,202.3]
[1645981156761,19.91366522,88.817,88.71,33.0835]
[1645981156962,336.28126444,88.826,88.72,202.3]
[1645981157167,336.28126444,88.826,88.73,218.48]
[1645981157461,336.28126444,88.826,88.74,16.18]
[1645981157661,336.28126444,88.826,88.721,18.30560026]
[1645981157662,336.28126444,88.826,88.75,16.18]
[1645981157861,6.0,88.83,88.75,16.18]
[1645981158062,1.95143584,88.847,88.75,33.0767]
[1645981158265,6.0,88.85,88.75,35.82348921]
[1645981158465,22.35962941,88.846,88.75,35.82348921]
[1645981158665,1.83395564,88.845,88.75,35.82348921]
[1645981159067,6.0,88.85,88.75,35.82348921]
[1645981159268,22.35962941,88.844,88.75,35.82348921]
[1645981159675,1.60628377,88.843,88.75,53.10778921]
[1645981159872,22.35962941,88.849,88.75,53.10778921]
[1645981160072,1.58342354,88.848,88.75,53.10778921]
[1645981160995,2.28475605,88.848,88.75,53.10778921]
[1645981161197,4.503,88.847,88.75,53.10778921]
[1645981161394,13.93370998,88.848,88.75,50.361]
[1645981161597,2.74678921,88.846,88.75,50.361]
[1645981161795,1.91529016,88.844,88.75,50.361]
[1645981162201,1.96412301,88.839,88.75,33.4643]
[1645981162399,1.96412301,88.839,88.722,23.4764]
[1645981162598,25.09404363,88.838,88.722,23.4764]
[1645981162897,9.19955156,88.837,88.722,23.4764]
[1645981163098,1.72578533,88.836,88.722,23.4764]
[1645981163298,4.505,88.835,88.723,34.75604233]
[1645981163498,16.18,88.82,88.723,34.75604233]
[1645981163698,1.89668466,88.818,88.723,34.75604233]
[1645981163898,4.506,88.817,88.723,34.75604233]
[1645981164200,2.74678921,88.817,88.723,34.75604233]
[1645981164399,7.25278921,88.816,88.723,34.75604233]
[1645981164599,2.74678921,88.816,88.723,34.75604233]
[1645981164802,2.74678921,88.815,88.723,34.75604233]
[1645981165499,22.33557946,88.814,88.723,34.75604233]
[1645981165699,6.12884267,88.813,88.723,34.75604233]
[1645981165900,8.87563188,88.813,88.723,34.75604233]
[1645981166302,2.74678921,88.812,88.723,34.75604233]
[1645981166702,16.9092,88.81,88.715,16.9479]
[1645981166908,6.22516039,88.809,88.715,16.9479]
[1645981167102,26.84191457,88.809,88.715,16.9479]
[1645981167305,1.64712411,88.808,88.715,16.9479]
[1645981167505,6.0,88.81,88.715,16.9479]
[1645981167705,2.74678921,88.812,88.72,33.0863]
[1645981168105,6.0,88.82,88.72,33.0863]
[1645981168405,4.506,88.829,88.72,33.0863]
[1645981168406,6.0,88.83,88.721,2.74678921]
[1645981168606,4.69355055,88.839,88.721,2.74678921]
[1645981168906,4.69355055,88.839,88.751,25.82684182]
[1645981168907,1.94676134,88.839,88.751,25.82684182]
[1645981169304,1.94676134,88.839,88.752,2.74678921]
[1645981170506,6.0,88.84,88.76,16.8976]
[1645981170806,1.62273973,88.858,88.76,33.0776]
[1645981171005,1.62273973,88.858,88.761,2.74678921]
[1645981171207,22.36348474,88.857,88.761,2.74678921]
[1645981171508,1.98832651,88.856,88.761,2.74678921]
[1645981172106,22.36348474,88.855,88.761,2.74678921]
[1645981172306,2.05718131,88.854,88.761,2.74678921]
[1645981172907,1.9073533,88.852,88.761,2.74678921]
[1645981173310,2.07714906,88.85,88.761,2.74678921]
[1645981173510,8.07714906,88.85,88.761,2.74678921]
[1645981173808,6.0,88.85,88.761,2.74678921]
[1645981174208,4.503,88.857,88.761,2.74678921]
[1645981174407,22.36715199,88.849,88.76,33.0776]
[1645981174807,1.84204233,88.848,88.76,33.0776]
[1645981175010,6.0,88.85,88.76,33.0776]
[1645981175211,2.04422536,88.854,88.76,33.0776]
[1645981175611,26.87445164,88.853,88.76,33.0776]
[1645981175810,22.37145164,88.853,88.76,33.0776]
[1645981176009,24.41709,88.852,88.76,33.0776]
[1645981176211,4.503,88.851,88.76,33.0776]
[1645981176409,6.0,88.85,88.76,33.0776]
[1645981176611,7.69539168,88.85,88.76,33.0776]
[1645981177011,6.0,88.85,88.76,33.0776]
[1645981177213,1.57253742,88.858,88.76,33.0776]
[1645981177714,22.38159104,88.857,88.76,33.0776]
[1645981177912,1.8284184,88.856,88.76,33.0776]
[1645981178517,22.38159104,88.855,88.76,33.0776]
[1645981178713,6.31972113,88.854,88.76,33.0776]
[1645981178913,6.31972113,88.854,88.76,16.18]
[1645981179336,25.12838025,88.853,88.76,16.18]
[1645981179517,6.63049686,88.852,88.76,16.18]
[1645981179715,29.0120879,88.852,88.76,16.18]
[1645981179915,1.78215451,88.851,88.76,16.18]
[1645981180116,6.0,88.85,88.76,16.18]
[1645981180323,7.96786462,88.85,88.76,16.18]
[1645981180518,22.38159104,88.849,88.76,16.18]
[1645981180718,1.88519281,88.848,88.76,16.18]
[1645981181118,6.0,88.85,88.76,16.18]
[1645981181318,1.57130547,88.858,88.76,16.18]
[1645981181518,1.57130547,88.858,88.76,33.0787]
[1645981181818,22.39817962,88.857,88.76,33.0787]
[1645981182018,1.83964843,88.856,88.76,33.0787]
[1645981182217,4.503,88.855,88.76,33.0787]
[1645981182419,1.83964843,88.856,88.76,33.0787]
[1645981182618,22.39817962,88.854,88.76,33.0787]
[1645981182821,6.37852264,88.853,88.76,33.0787]
[1645981183418,48.4717,88.859,88.761,2.74678921]
[1645981183618,1.59337106,88.858,88.77,16.8963]
[1645981183819,22.39729082,88.858,88.77,33.0763]
[1645981184119,1.96877131,88.857,88.77,33.0763]
[1645981185123,0.93877131,88.857,88.77,33.0763]
[1645981186726,6.0,88.86,88.771,5.02258437]
[1645981186948,0.9525607,88.879,88.791,29.20608754]
[1645981187148,6.0,88.89,88.8,16.18]
[1645981187349,1.92895612,88.891,88.8,16.18]
[1645981187548,6.0,88.89,88.8,16.18]
[1645981187749,6.0,88.89,88.801,2.74678921]
[1645981188547,1.64165927,88.898,88.821,29.48252871]
[1645981191047,1.64165927,88.898,88.821,46.42542871]
[1645981195552,1.64165927,88.898,88.821,16.9429]
[1645981195752,2.74678921,88.897,88.82,16.18]
[1645981195951,2.74678921,88.897,88.819,17.0916]
[1645981196149,26.85609281,88.896,88.819,17.0916]
[1645981196352,1.85153989,88.895,88.819,17.0916]
[1645981196550,6.32518665,88.894,88.819,17.0916]
[1645981197051,1.78095098,88.892,88.819,17.0916]
[1645981197252,4.501,88.891,88.819,17.0916]
[1645981197450,6.0,88.89,88.819,17.0916]
[1645981197651,29.84813708,88.89,88.819,17.0916]
[1645981197849,1.66549001,88.889,88.819,17.0916]
[1645981198253,6.0,88.89,88.819,17.0916]
[1645981198452,1.6888406,88.895,88.819,17.0916]
[1645981198651,4.501,88.894,88.819,17.0916]
[1645981199053,1.44899966,88.892,88.819,17.0916]
[1645981199351,4.501,88.892,88.819,17.0916]
[1645981199550,6.39756542,88.898,88.819,17.0916]
[1645981199951,6.39756542,88.898,88.8,33.0708]
[1645981200152,16.8939,88.89,88.8,16.18]
[1645981200352,5.90861197,88.889,88.8,16.18]
[1645981200650,1.49311697,88.887,88.8,16.18]
[1645981200853,4.502,88.886,88.781,48.3205]
[1645981201052,1.59355862,88.885,88.774,33.33657138]
[1645981201252,6.30305877,88.884,88.77,16.18]
[1645981201455,16.8958,88.88,88.751,16.8512]
[1645981201653,16.18,88.87,88.751,16.8512]
[1645981201851,47.24767857,88.869,88.751,16.8512]
[1645981202053,6.36293538,88.868,88.751,16.8512]
[1645981202252,26.89185779,88.868,88.752,34.83070552]
[1645981202552,39.8923413,88.867,88.752,34.83070552]
[1645981202757,5.95080138,88.866,88.751,16.8512]
[1645981202953,16.9015,88.85,88.751,16.8512]
[1645981203154,1.72395115,88.848,88.751,16.8512]
[1645981203357,9.54395115,88.848,88.736,2.74678921]
[1645981203556,1.6108458,88.839,88.724,2.74678921]
[1645981203756,4.505,88.838,88.706,2.74678921]
[1645981203955,1.42170498,88.837,88.713,31.98504765]
[1645981204156,4.505,88.836,88.713,31.98504765]
[1645981204355,16.9113,88.81,88.713,31.98504765]
[1645981204555,48.7913,88.809,88.713,31.98504765]
[1645981204756,1.61303773,88.808,88.713,31.98504765]
[1645981204956,4.35982694,88.808,88.713,31.98504765]
[1645981205155,4.506,88.807,88.713,31.98504765]
[1645981205356,13.76278921,88.807,88.701,24.5973]
[1645981205559,13.76278921,88.807,88.69,16.18]
[1645981205560,16.9113,88.8,88.681,24.6871]
[1645981205756,6.36799383,88.799,88.681,24.6871]
[1645981205958,31.20544471,88.799,88.681,24.6871]
[1645981206156,24.7983016,88.798,88.684,2.74678921]
[1645981206356,4.507,88.797,88.684,33.17686404]
[1645981206558,8.94320009,88.797,88.684,33.17686404]
[1645981206758,1.84752352,88.796,88.685,2.74678921]
[1645981206957,1.58147294,88.794,88.686,6.0]
[1645981207158,10.507,88.793,88.686,6.0]
[1645981207358,16.18,88.79,88.686,6.0]